fUSD/lending_fUSD_20240319
["ID","MTS","AMOUNT","RATE_DAILY","PERIOD"]
[319579101,1710880256996,-500.0,0.00030136,2]
[319579102,1710880257005,-4593.16,0.00030136,2]
[319579103,1710880257014,-501.22130698,0.00030136,2]
[319579104,1710880257025,-239.52941338,0.00030136,2]
[319579105,1710880257048,-237.49079875,0.00030136,2]
[319579106,1710880257059,-500.0,0.00030136,2]
[319579107,1710880257069,-500.0,0.00030136,2]
[319579108,1710880257083,-500.0,0.00030136,2]
[319579109,1710880257094,-119.00072929,0.00030136,2]
[319579110,1710880257105,-380.99927071,0.00030136,2]
[319579111,1710880257115,-1015.42,0.00030136,2]
[319579112,1710880257126,-95.08072929,0.00030136,2]
[319579113,1710880257139,-1391.74,0.00030136,2]
[319579114,1710880257160,-1300.46927071,0.00030136,2]
[319579115,1710880257170,-500.0,0.00030136,2]
[319579116,1710880257179,-500.0,0.00030136,2]
[319579117,1710880257189,-43933.94,0.00030136,2]
[319579118,1710880257198,-500.0,0.00030136,2]
[319579119,1710880257207,-151.0,0.00030136,7]
[319579120,1710880257216,-151.0,0.00030136,7]
[319579121,1710880257226,-500.0,0.00030136,2]
[319579122,1710880257235,-151.0,0.00030136,7]
[319579123,1710880257246,-151.0,0.00030136,7]
[319579124,1710880257255,-12931.57,0.00030136,2]
[319579125,1710880257264,-707.75,0.00030136,2]
[319579126,1710880257274,-4947.7,0.00030136,2]
[319579127,1710880257283,-501.18992817,0.00030136,2]
[319579128,1710880257292,-500.0,0.00030136,2]
[319579129,1710880257301,-500.0,0.00030136,2]
[319579130,1710880257311,-500.0,0.00030136,2]
[319579131,1710880257321,-500.0,0.00030136,2]
[319579132,1710880257331,-500.0,0.00030136,2]
[319579133,1710880257342,-500.0,0.00030136,2]
[319579134,1710880257352,-500.0,0.00030136,2]
[319579135,1710880257362,-500.0,0.00030136,2]
[319579136,1710880257372,-3359.44,0.00030136,2]
[319579137,1710880257382,-500.0,0.00030136,2]
[319579138,1710880257392,-583.32981841,0.00030136,2]
[319579139,1710880257402,-5498.63,0.00030136,2]
[319579140,1710880257413,-500.0,0.00030136,2]
[319579141,1710880257423,-5732.54,0.00030136,2]
[319579142,1710880257432,-151.0,0.00030136,7]
[319579143,1710880257442,-500.0,0.00030136,2]
[319579144,1710880257452,-500.0,0.00030136,2]
[319579145,1710880257461,-151.0,0.00030136,7]
[319579146,1710880257471,-151.0,0.00030136,7]
[319579147,1710880257481,-2452.37899467,0.00030136,2]
[319579148,1710880257495,-7345.08100533,0.00030136,2]
[319579149,1710880257505,-500.0,0.00030136,2]
[319579150,1710880257514,-496.36837277,0.00030136,2]
[319579151,1710880257524,-151.0,0.00030136,7]
[319579152,1710880257534,-500.0,0.00030136,2]
[319579153,1710880257543,-500.0,0.00030136,2]
[319579154,1710880257552,-8793.0506219,0.00030136,2]
[319579155,1710880258244,-518.15027836,0.00013999,2]
[319579156,1710880258258,-191.74047815,0.00013999,2]
[319579157,1710880258268,-1335.78027369,0.00028684,2]
[319579158,1710880258280,-467.14,0.00028986,2]
[319579159,1710880258290,-1278.5793781,0.00030136,2]
[319579160,1710880258300,-151.0,0.00030136,7]
[319579161,1710880258310,-151.0,0.00030136,7]
[319579162,1710880258319,-151.0,0.00030136,7]
[319579163,1710880258330,-151.0,0.00030136,7]
[319579164,1710880258339,-500.0,0.00030136,2]
[319579165,1710880258349,-1544.46,0.00030136,2]
[319579166,1710880258358,-85.25486475,0.00030136,2]
[319579167,1710880258379,-442.69513525,0.00030136,2]
[319579168,1710880258388,-500.0,0.00030136,2]
[319579169,1710880258398,-151.0,0.00030136,7]
[319579170,1710880258407,-683.61668355,0.00030136,2]
[319579171,1710880258420,-11872.90331645,0.00030136,2]
[319579172,1710880258429,-151.0,0.00030136,7]
[319579173,1710880258439,-151.0,0.00030136,7]
[319579174,1710880258449,-151.0,0.00030136,7]
[319579175,1710880258459,-588.28,0.00030136,2]
[319579176,1710880258468,-3329.33,0.00030136,2]
[319579177,1710880258479,-500.0,0.00030136,2]
[319579178,1710880258490,-500.0,0.00030136,2]
[319579179,1710880258500,-4605.72,0.00030136,2]
[319579180,1710880258510,-560.32,0.00030136,2]
[319579181,1710880258520,-500.0,0.00030136,2]
[319579182,1710880258535,-2149.53,0.00030136,2]
[319579183,1710880258545,-609.22,0.00030136,2]
[319579184,1710880258557,-500.0,0.00030136,2]
[319579185,1710880258567,-500.0,0.00030136,2]
[319579186,1710880258577,-500.0,0.00030136,2]
[319579187,1710880258587,-704.07,0.00030136,2]
[319579188,1710880258597,-637.65,0.00030136,2]
[319579189,1710880258606,-5569.09,0.00030136,2]
[319579190,1710880258617,-5013.49,0.00030136,2]
[319579191,1710880258628,-11166.87,0.00030136,2]
[319579192,1710880258638,-500.0,0.00030136,2]
[319579193,1710880258648,-572.96,0.00030136,2]
[319579194,1710880258657,-2375.08497314,0.00030136,2]
[319579195,1710880258672,-636.18502686,0.00030136,2]
[319579196,1710880258682,-500.0,0.00030136,2]
[319579197,1710880258693,-326.6768495,0.00030136,2]
[319579198,1710880258706,-2438.4631505,0.00030136,2]
[319579199,1710880258716,-13555.06,0.00030136,2]
[319579200,1710880258727,-500.0,0.00030136,2]
[319579201,1710880258738,-866.55,0.00030136,2]
[319579202,1710880258748,-151.0,0.00030136,7]
[319579203,1710880258758,-500.0,0.00030136,2]
[319579204,1710880258769,-500.0,0.00030136,2]
[319579205,1710880258784,-5994.04,0.00030136,2]
[319579206,1710880258794,-500.0,0.00030136,2]
[319579207,1710880258804,-9125.37,0.00030136,2]
[319579208,1710880258814,-1527.51,0.00030136,2]
[319579209,1710880258824,-4791.48,0.00030136,2]
[319579210,1710880258835,-3278.6,0.00030136,2]
[319579211,1710880258845,-500.0,0.00030136,2]
[319579212,1710880258856,-59625.01,0.00030136,2]
[319579213,1710880258866,-500.0,0.00030136,2]
[319579214,1710880258876,-500.0,0.00030136,2]
[319579215,1710880258886,-500.0,0.00030136,2]
[319579216,1710880258897,-500.0,0.00030136,2]
[319579217,1710880258907,-1617.15,0.00030136,2]
[319579218,1710880258917,-10600.5,0.00030136,2]
[319579219,1710880258927,-500.0,0.00030136,2]
[319579220,1710880258937,-4950.88,0.00030136,2]
[319579221,1710880258948,-500.0,0.00030136,2]
[319579222,1710880258959,-5264.08,0.00030136,2]
[319579223,1710880258968,-500.0,0.00030136,2]
[319579224,1710880258978,-500.0,0.00030136,2]
[319579225,1710880258992,-500.0,0.00030136,2]
[319579226,1710880259002,-500.0,0.00030136,2]
[319579227,1710880259013,-573.07,0.00030136,2]
[319579228,1710880259023,-4380.51,0.00030136,2]
[319579229,1710880259035,-5058.11,0.00030136,2]
[319579230,1710880259046,-10905.85,0.00030136,2]
[319579231,1710880259055,-500.0,0.00030136,2]
[319579232,1710880259065,-500.0,0.00030136,2]
[319579233,1710880259075,-704.67,0.00030136,2]
[319579234,1710880259086,-4055.02,0.00030136,2]
[319579235,1710880259097,-500.0,0.00030136,2]
[319579236,1710880259106,-500.0,0.00030136,2]
[319579237,1710880259115,-500.0,0.00030136,2]
[319579238,1710880259124,-500.0,0.00030136,2]
[319579239,1710880259134,-1139.82,0.00030136,2]
[319579240,1710880259143,-6262.34,0.00030136,2]
[319579241,1710880259153,-500.0,0.00030136,2]
[319579242,1710880259163,-1418.66,0.00030136,2]
[319579243,1710880259174,-500.0,0.00030136,2]
[319579244,1710880259185,-500.0,0.00030136,2]
[319579245,1710880259195,-6947.59,0.00030136,2]
[319579246,1710880259204,-6079.01,0.00030136,2]
[319579247,1710880259214,-945.9,0.00030136,2]
[319579248,1710880259224,-500.0,0.00030136,2]
[319579249,1710880259234,-500.0,0.00030136,2]
[319579250,1710880259244,-3600.11,0.00030136,2]
[319579251,1710880259253,-3532.06964925,0.00030136,2]
[319579252,1710880259268,-7533.16035075,0.00030136,2]
[319579253,1710880259280,-1775.94442548,0.00030136,2]
[319579254,1710880259389,-803.15061851,0.00030136,2]
[319579255,1710880259409,-531.71879515,0.00030136,2]
[319579256,1710880259420,-494.55694311,0.00030136,2]
[319579257,1710880259433,-359.97921775,0.00030136,2]
[319579258,1710880259618,-1242.39,0.00030136,2]
[319579259,1710880259637,-8309.83,0.00030136,2]
[319579260,1710880259648,-869.76,0.00030136,2]
[319579261,1710880259659,-500.0,0.00030136,2]
[319579262,1710880259669,-6378.11,0.00030136,2]
[319579263,1710880259680,-2805.95,0.00030136,2]
[319579264,1710880259689,-1430.84,0.00030136,2]
[319579265,1710880259700,-592.77644266,0.00030136,2]
[319579266,1710880259711,-8430.4,0.00030136,2]
[319579267,1710880259722,-4268.25,0.00030136,2]
[319579268,1710880259732,-500.0,0.00030136,2]
[319579269,1710880259743,-8217.0,0.00030136,2]
[319579270,1710880259754,-500.0,0.00030136,2]
[319579271,1710880259764,-505.247822,0.00030136,7]
[319579272,1710880259777,-505.247822,0.00030136,7]
[319579273,1710880259787,-408.316851,0.00030136,7]
[319579274,1710880259796,-500.0,0.00030136,2]
[319579275,1710880259806,-505.247822,0.00030136,7]
[319579276,1710880259815,-408.316851,0.00030136,7]
[319579277,1710880259825,-505.247822,0.00030136,7]
[319579278,1710880259836,-408.316851,0.00030136,7]
[319579279,1710880259852,-408.316851,0.00030136,7]
[319579280,1710880259862,-6751.46,0.00030136,2]
[319579281,1710880259876,-4678.95,0.00030136,2]
[319579282,1710880259886,-4055.47592674,0.00030136,2]
[319579283,1710880260486,-5179.64914183,0.00030136,2]
[319579284,1710880260499,-238.75493143,0.00030136,2]
[319579285,1710880260508,-500.0,0.00030136,2]
[319579286,1710880260518,-500.0,0.00030136,2]
[319579287,1710880260529,-1728.15,0.00030136,2]
[319579288,1710880260540,-211.60612425,0.00030136,7]
[319579289,1710880260566,-196.71072675,0.00030136,7]
[319579290,1710880260575,-3931.07,0.00030136,2]
[319579291,1710880260585,-408.316851,0.00030136,7]
[319579292,1710880260595,-1034.35696193,0.00030136,2]
[319579293,1710880260644,-17845.32303807,0.00030136,2]
[319579294,1710880260655,-408.316851,0.00030136,7]
[319579295,1710880260666,-408.316851,0.00030136,7]
[319579296,1710880260678,-519.04325993,0.00030136,2]
[319579297,1710880260695,-347.44581063,0.00030136,2]
[319579298,1710880260709,-676.87591889,0.00030136,2]
[319579299,1710880260726,-398.68286342,0.00030136,2]
[319579300,1710880260739,-406.29214713,0.00030136,2]
[319579301,1710880260750,-93.70785287,0.00030136,2]
[319579302,1710880260763,-613.05214713,0.00030136,2]
[319579303,1710880260773,-500.0,0.00030136,2]
[319579304,1710880260786,-500.0,0.00030136,2]
[319579305,1710880260795,-505.247822,0.00030136,7]
[319579306,1710880260806,-151.0,0.00030136,7]
[319579307,1710880260815,-201.059719,0.00030136,7]
[319579308,1710880260826,-505.247822,0.00030136,7]
[319579309,1710880260836,-151.0,0.00030136,7]
[319579310,1710880260847,-500.0,0.00030136,2]
[319579311,1710880260859,-201.059719,0.00030136,7]
[319579312,1710880260870,-505.247822,0.00030136,7]
[319579313,1710880260882,-151.0,0.00030136,7]
[319579314,1710880260893,-201.059719,0.00030136,7]
[319579315,1710880260903,-505.247822,0.00030136,7]
[319579316,1710880260913,-201.059719,0.00030136,7]
[319579317,1710880260926,-151.0,0.00030136,7]
[319579318,1710880260937,-500.0,0.00030136,2]
[319579319,1710880260947,-5218.88,0.00030136,2]
[319579320,1710880260958,-1255.29,0.00030136,2]
[319579321,1710880260968,-500.0,0.00030136,2]
[319579322,1710880260978,-201.059719,0.00030136,7]
[319579323,1710880260988,-572.48796988,0.00030136,2]
[319579324,1710880261001,-865.0072943,0.00030136,2]
[319579325,1710880264999,1585.66363038,0.000139,2]
[319579326,1710880344889,1585.66363038,0.000139,2]
[319579327,1710880362880,1585.66363038,0.000139,2]
[319579328,1710880386880,1585.66363038,0.000139,2]
[319579329,1710880404209,732.953724,0.000139,2]
[319579330,1710880410920,1585.66363038,0.000139,2]
[319579331,1710880434872,1585.66363038,0.000139,2]
[319579333,1710880450956,1585.66363038,0.000139,2]
[319579334,1710880466908,307.39352525,0.000139,2]
[319579335,1710880574293,166.83551498,0.00013899,2]
[319579375,1710881432192,-155.0,0.00013994,2]
[319579376,1710881432202,-151.3910658,0.00013995,2]
[319579377,1710881432296,-110.50148497,0.00013995,2]
[319579378,1710881432306,-286.58235924,0.00013996,2]
[319579420,1710881438024,-1295.8526702,0.00013996,2]
[319579421,1710881438044,-733.7288269,0.00013996,2]
[319579422,1710881438108,-1502.36837134,0.00013996,2]
[319579423,1710881438119,-2504.22902676,0.00013996,2]
[319579424,1710881438131,-4220.52283981,0.00013996,2]
[319579425,1710881438140,-4579.47715769,0.00013997,2]
[319579441,1710881441878,-659.31163044,0.00013997,2]
[319579442,1710881441891,-290.49756178,0.00013997,2]
[319579443,1710881441905,-125.95059289,0.00013997,2]
[319579444,1710881441916,-769.85645944,0.00013999,2]
[319579445,1710881441926,-2.93914433,0.00013999,2]
[319579446,1710881441937,-250.0,0.00013999,2]
[319579447,1710881441949,-85.6711736,0.00013999,2]
[319579448,1710881441958,-1982.47149714,0.00013999,2]
[319579449,1710881441968,-1000.0,0.00017,2]
[319579450,1710881441977,-9741.05732926,0.0002,2]
[319579451,1710881441989,-641.74232586,0.0002,2]
[319579452,1710881442013,-1008.89001647,0.0002,2]
[319579453,1710881442024,-621.84,0.0002,2]
[319579454,1710881442042,-374.07477111,0.0002,2]
[319579455,1710881442053,-300.6499999,0.0002,2]
[319579456,1710881442065,-917.1710005,0.0002,2]
[319579457,1710881442088,-18389.58117776,0.0002,2]
[319579458,1710881442098,-18382.73643529,0.0002,2]
[319579459,1710881442107,-500.0,0.0002,2]
[319579460,1710881442116,-3000.0,0.0002,2]
[319579461,1710881442126,-2337.94377861,0.0002,2]
[319579462,1710881442135,-5000.0,0.0002,2]
[319579463,1710881442144,-286.74572755,0.0002,2]
[319579464,1710881442153,-155.0,0.0002,2]
[319579465,1710881442165,-155.0,0.00020989,2]
[319579466,1710881442174,-2459.94407797,0.00021,2]
[319579467,1710881442184,-259.51,0.00021358,2]
[319579468,1710881442194,-1361.61670232,0.00022,2]
[319579469,1710881442204,-351.05,0.00023007,2]
[319579470,1710881442214,-264.28,0.0002324,2]
[319579471,1710881442223,-250.0,0.00023255,2]
[319579472,1710881442233,-521.6,0.00023289,2]
[319579473,1710881442243,-3238.7,0.00023437,2]
[319579474,1710881442252,-250.0,0.00023528,2]
[319579475,1710881442262,-7052.48107887,0.00023545,2]
[319579476,1710881442281,-4450.90819688,0.00023545,2]
[319579477,1710881442310,-381.88934459,0.00023545,2]
[319579478,1710881442321,-688.8346982,0.00023545,2]
[319579512,1710881443063,-3706.89322357,0.00023545,2]
[319579514,1710881443076,-3441.97345789,0.00023545,2]
[319579516,1710881443085,-259.51,0.00023621,2]
[319579518,1710881443094,-250.0,0.00023801,2]
[319579520,1710881443103,-46363.25,0.00023853,2]
[319579522,1710881443112,-46363.25,0.00024236,2]
[319579524,1710881443122,-648.36,0.00024612,2]
[319579526,1710881443132,-46363.25,0.00024619,2]
[319579527,1710881443141,-5253.3,0.00024622,2]
[319579529,1710881443150,-2999.99,0.00024637,2]
[319579531,1710881443159,-3000.0,0.00024645,2]
[319579532,1710881443172,-3000.0,0.00024647,2]
[319579533,1710881443181,-3000.0,0.0002467,2]
[319579534,1710881443190,-3000.0,0.00024686,2]
[319579535,1710881443199,-666.34,0.00024694,2]
[319579536,1710881443209,-1500.0,0.000248,2]
[319579537,1710881443218,-1687.96,0.00025,3]
[319579538,1710881443227,-1703.06,0.00025,3]
[319579539,1710881443236,-46363.25,0.00025002,2]
[319579540,1710881443245,-1500.0,0.000253,2]
[319579541,1710881443254,-46363.25,0.00025386,2]
[319579542,1710881443263,-46363.25,0.00025769,2]
[319579543,1710881443272,-1813.0,0.000258,3]
[319579544,1710881443281,-1500.0,0.000258,2]
[319579545,1710881443291,-259.51,0.00025885,2]
[319579546,1710881443299,-786.33228263,0.00026008,2]
[319579547,1710881443309,-648.36,0.00026142,2]
[319579548,1710881443318,-46363.25,0.00026152,2]
[319579549,1710881443327,-521.6,0.000262,2]
[319579550,1710881443337,-46363.25,0.00026535,2]
[319579551,1710881443347,-786.33228263,0.00026817,3]
[319579552,1710881443356,-2801.0,0.00026897,2]
[319579553,1710881443365,-1000.0,0.00027,4]
[319579554,1710881443374,-150.0,0.00027397,2]
[319579555,1710881443384,-786.33228263,0.00027625,3]
[319579556,1710881443393,-1000.0,0.00028,4]
[319579557,1710881443403,-1000.0,0.00028,4]
[319579558,1710881443416,-1000.0,0.00028,4]
[319579559,1710881443428,-1000.0,0.00028,3]
[319579560,1710881443439,-259.51,0.00028149,2]
[319579561,1710881443448,-786.33228263,0.00028433,4]
[319579562,1710881443458,-167.01,0.00028634,2]
[319579563,1710881443469,-463.50522411,0.00028655,2]
[319579564,1710881443479,-446.15357644,0.00028655,90]
[319579565,1710881443489,-747.34520242,0.00028655,2]
[319579566,1710881443499,-4000.0,0.00029,2]
[319579567,1710881443510,-1000.0,0.00029,4]
[319579568,1710881443520,-500.0,0.00029,4]
[319579569,1710881443529,-469.0,0.00029,4]
[319579570,1710881443538,-521.6,0.00029111,2]
[319579571,1710881443547,-786.33228263,0.00029241,4]
[319579572,1710881443557,-170.15,0.00029292,91]
[319579573,1710881443566,-516.83,0.00029378,2]
[319579574,1710881443575,-303.02,0.00029378,2]
[319579575,1710881443585,-504.04,0.00029534,2]
[319579576,1710881443594,-156.21360509,0.00029834,3]
[319579577,1710881443604,-250.79,0.00029863,2]
[319579578,1710881443613,-161.11,0.00029863,2]
[319579579,1710881443622,-161.11,0.00029863,2]
[319579580,1710881443632,-200.0,0.00029895,2]
[319579581,1710881443641,-500.0,0.00029895,2]
[319579582,1710881443651,-200.0,0.00029895,2]
[319579583,1710881443661,-738.05610333,0.00029936,2]
[319579584,1710881443671,-738.05610332,0.00029986,2]
[319579585,1710881443681,-400.0,0.00029999,2]
[319579586,1710881443691,-7165.49994947,0.0003,2]
[319579587,1710881443700,-1800.0,0.0003,10]
[319579588,1710881443709,-6564.80576853,0.0003,3]
[319579589,1710881443718,-2483.87174996,0.0003,2]
[319579590,1710881443728,-648.36,0.00030026,2]
[319579591,1710881443737,-200.0,0.00030031,2]
[319579592,1710881443746,-19255.34294259,0.00030035,4]
[319579593,1710881443755,-1000.0,0.00030036,2]
[319579594,1710881443765,-500.0,0.00030036,2]
[319579595,1710881443774,-88219.3007,0.00030036,2]
[319579596,1710881443784,-4187.3835,0.00030036,2]
[319579597,1710881443793,-4812.6058,0.00030036,2]
[319579598,1710881443803,-100000.0,0.00030036,2]
[319579599,1710881443813,-7500.0,0.00030036,2]
[319579600,1710881443822,-191.09608859,0.00030036,2]
[319579601,1710881443832,-166.79085018,0.00030036,2]
[319579602,1710881443841,-152.82416009,0.00030036,2]
[319579603,1710881443850,-20468.27562597,0.00030036,2]
[319579604,1710881443859,-184.3535761,0.00030036,2]
[319579605,1710881443868,-351.08459876,0.00030036,2]
[319579606,1710881443877,-738.05610332,0.00030036,2]
[319579607,1710881443886,-786.33228263,0.0003005,4]
[319579608,1710881443896,-800.0,0.00030099,8]
[319579609,1710881443905,-150.14354412,0.00030106,2]
[319579610,1710881443918,-922.7,0.0003011,2]
[319579611,1710881443928,-648.36,0.00030126,2]
[319579612,1710881443939,-648.36,0.00030126,2]
[319579613,1710881443948,-2500.0,0.00030134,2]
[319579614,1710881443956,-739.75880684,0.00030134,2]
[319579615,1710881443965,-397.08384421,0.00030134,4]
[319579616,1710881443974,-577.51015398,0.00030134,120]
[319579617,1710881443983,-155.18681793,0.00030134,4]
[319579618,1710881443992,-864.59315853,0.00030134,4]
[319579619,1710881444002,-155.50695374,0.00030134,4]
[319579620,1710881444012,-5355.57004342,0.00030134,2]
[319579621,1710881444022,-167.26410838,0.00030134,5]
[319579622,1710881444031,-155.53392424,0.00030134,2]
[319579623,1710881444039,-155.0,0.00030134,4]
[319579624,1710881444048,-205.23039274,0.00030135,2]
[319579625,1710881444058,-4644.79109028,0.00030135,2]
[319579626,1710881444067,-186.31336955,0.00030135,2]
[319579627,1710881444076,-390.0,0.00030136,5]
[319579628,1710881444085,-595.50914919,0.00030136,2]
[319579629,1710881444095,-497.61100845,0.00030136,2]
[319579630,1710881444104,-500.0,0.00030136,2]
[319579631,1710881444113,-503.09154086,0.00030136,2]
[319579632,1710881444123,-500.0,0.00030136,2]
[319579633,1710881444132,-500.0,0.00030136,2]
[319579634,1710881444141,-500.0,0.00030136,2]
[319579635,1710881444150,-500.0,0.00030136,2]
[319579636,1710881444159,-500.0,0.00030136,2]
[319579637,1710881444174,-313.38660356,0.00030136,2]
[319579638,1710881444183,-500.0,0.00030136,2]
[319579639,1710881444192,-500.0,0.00030136,2]
[319579640,1710881444202,-500.0,0.00030136,2]
[319579641,1710881444211,-500.0,0.00030136,2]
[319579642,1710881444220,-500.0,0.00030136,2]
[319579643,1710881444228,-500.0,0.00030136,2]
[319579644,1710881444237,-500.0,0.00030136,2]
[319579645,1710881444248,-500.0,0.00030136,2]
[319579646,1710881444257,-894.74,0.00030136,2]
[319579647,1710881444266,-2000.0,0.00030136,2]
[319579648,1710881444555,-200.0,0.00030136,2]
[319579649,1710881444565,-679.9,0.00030136,2]
[319579650,1710881444574,-1046.52,0.00030136,2]
[319579651,1710881444583,-500.0,0.00030136,2]
[319579652,1710881444593,-907.37,0.00030136,2]
[319579653,1710881444602,-501.51884981,0.00030136,2]
[319579654,1710881444611,-543.17,0.00030136,2]
[319579655,1710881444620,-543.56,0.00030136,2]
[319579656,1710881444629,-602.67,0.00030136,2]
[319579657,1710881444639,-500.0,0.00030136,2]
[319579658,1710881444648,-500.0,0.00030136,2]
[319579659,1710881444657,-500.0,0.00030136,2]
[319579660,1710881444668,-724.14,0.00030136,2]
[319579661,1710881444677,-500.0,0.00030136,2]
[319579662,1710881444687,-500.0,0.00030136,2]
[319579663,1710881444697,-500.0,0.00030136,2]
[319579664,1710881444706,-1782.36,0.00030136,2]
[319579665,1710881444715,-500.0,0.00030136,2]
[319579666,1710881444725,-2010.31,0.00030136,2]
[319579667,1710881444735,-500.0,0.00030136,2]
[319579668,1710881444744,-1746.87,0.00030136,2]
[319579669,1710881444753,-1006.2,0.00030136,2]
[319579670,1710881444762,-500.0,0.00030136,2]
[319579671,1710881444771,-996.59,0.00030136,2]
[319579672,1710881444780,-541.55216256,0.00030136,2]
[319579673,1710881444789,-1660.98,0.00030136,2]
[319579674,1710881444799,-500.0,0.00030136,2]
[319579675,1710881444808,-614.61,0.00030136,2]
[319579676,1710881444818,-648.02,0.00030136,2]
[319579677,1710881444827,-500.0,0.00030136,2]
[319579678,1710881444837,-860.24,0.00030136,2]
[319579679,1710881444845,-2122.3,0.00030136,2]
[319579680,1710881444855,-500.0,0.00030136,2]
[319579681,1710881444864,-546.42,0.00030136,2]
[319579682,1710881444873,-1129.81,0.00030136,2]
[319579683,1710881444882,-500.0,0.00030136,2]
[319579684,1710881444891,-500.0,0.00030136,2]
[319579685,1710881444900,-746.85,0.00030136,2]
[319579686,1710881444910,-500.0,0.00030136,2]
[319579687,1710881444921,-679.96,0.00030136,2]
[319579688,1710881444930,-504.09479158,0.00030136,2]
[319579689,1710881444939,-500.0,0.00030136,2]
[319579690,1710881444949,-500.0,0.00030136,2]
[319579691,1710881444958,-1031.51,0.00030136,2]
[319579692,1710881444968,-1115.36,0.00030136,2]
[319579693,1710881444977,-500.0,0.00030136,2]
[319579694,1710881444987,-883.24,0.00030136,2]
[319579695,1710881444996,-983.84,0.00030136,2]
[319579696,1710881445005,-500.0,0.00030136,2]
[319579697,1710881445015,-500.0,0.00030136,2]
[319579698,1710881445024,-500.0,0.00030136,2]
[319579699,1710881445033,-500.0,0.00030136,2]
[319579700,1710881445043,-629.33,0.00030136,2]
[319579701,1710881445052,-500.0,0.00030136,2]
[319579702,1710881445062,-1579.76,0.00030136,2]
[319579703,1710881445071,-771.37,0.00030136,2]
[319579704,1710881445079,-500.0,0.00030136,2]
[319579705,1710881445088,-790.09,0.00030136,2]
[319579706,1710881445098,-1283.91,0.00030136,2]
[319579707,1710881445106,-500.0,0.00030136,2]
[319579708,1710881445116,-500.0,0.00030136,2]
[319579709,1710881445125,-500.0,0.00030136,2]
[319579710,1710881445134,-500.0,0.00030136,2]
[319579711,1710881445143,-500.0,0.00030136,2]
[319579712,1710881445153,-1392.26,0.00030136,2]
[319579713,1710881445162,-500.0,0.00030136,2]
[319579714,1710881445173,-971.63,0.00030136,2]
[319579715,1710881445182,-594.82,0.00030136,2]
[319579716,1710881445191,-158.63992207,0.00030136,2]
[319579717,1710881445200,-500.0,0.00030136,2]
[319579718,1710881445210,-500.0,0.00030136,2]
[319579719,1710881445220,-500.0,0.00030136,2]
[319579720,1710881445230,-500.0,0.00030136,2]
[319579721,1710881445240,-557.65,0.00030136,2]
[319579722,1710881445249,-500.0,0.00030136,2]
[319579723,1710881445258,-151.0,0.00030136,7]
[319579724,1710881445267,-151.0,0.00030136,7]
[319579725,1710881445276,-151.0,0.00030136,7]
[319579726,1710881445285,-500.0,0.00030136,2]
[319579727,1710881445295,-1027.55,0.00030136,2]
[319579728,1710881445304,-151.0,0.00030136,7]
[319579729,1710881445314,-500.0,0.00030136,2]
[319579730,1710881445323,-852.78,0.00030136,2]
[319579731,1710881445332,-500.0,0.00030136,2]
[319579732,1710881445341,-500.0,0.00030136,2]
[319579733,1710881445350,-500.0,0.00030136,2]
[319579734,1710881445359,-500.0,0.00030136,2]
[319579735,1710881445368,-500.0,0.00030136,2]
[319579736,1710881445377,-860.48,0.00030136,2]
[319579737,1710881445387,-500.0,0.00030136,2]
[319579738,1710881445396,-500.0,0.00030136,2]